[Event "Elitserien Allsvenskan 2018-19"]
[Site "Sweden"]
[Date "2018.11.11"]
[Round "3"]
[White "Nyander, Joakim"]
[Black "Norberg, Johan"]
[Result "0-1"]
[ECO "A26"]
[WhiteElo "2229"]
[BlackElo "2306"]
[Annotator "NA"]
[PlyCount "30"]
[EventDate "2018.11.09"]
[EventType "team-tourn"]
[EventCountry "SWE"]
[SourceTitle "playchess.com"]
[Source "ChessBase"]
[SourceQuality "1"]
[TimeControl "40/5400+30:1800+30"]

1. c4 {[%emt 0:00:00]} e5 {[%emt 0:00:31]} 2. g3 {[%emt 0:00:06]} Nc6 {[%emt 0:00:45]} 3. Nc3 {[%emt 0:01:29]} g6 {[%emt 0:00:45]} 4. Bg2 {[%emt 0:00:40]} Bg7 {[%emt 0:00:06]} 5. e4 {[%emt 0:01:54]} Nge7 {[%emt 0:08:38]} 6. Nge2 {[%emt 0:00:30]} O-O {[%emt 0:00:30]} 7. d3 {[%emt 0:03:14]} d6 {[%emt 0:03:53]} 8. O-O {[%emt 0:11:41]} Nd4 {[%emt 0:00:00] exd4 [%clk 1:14:35] Ne2 [%clk 1:22:09]} 9. c5 {[%emt 0:02:26] Rb1 [%clk 1:20:23]} a5 {[%emt 0:06:52]} 10. a3 {[%emt 0:00:00]} a4 {[%emt 0:00:30]} 11. b4 {[%emt 0:00:00]} axb3 {[%emt 0:00:30]} 12. Qxb3 {[%emt 0:00:00] Qa5 [%clk 0:52:50] h3 [%clk 0:44:00] Nc6 [%clk 0:40:55] Qc2 [%clk 0:39:56] Qa6 [%clk 0:22:55] g4 [%clk 0:38:54]} Bd7 {[%emt 0:52:28]} 13. f4 {[%emt 0:38:37] Rfb8 [%clk 0:16:23] f5 [%clk 0:31:42]} b5 {[%emt 0:04:29] cxb5 [%clk 0:31:15] Rxb5 [%clk 0:16:44] Rxb5 [%clk 0:27:13]} 14. Qxb5 {[%emt 0:19:29]} f6 {[%emt 0:00:00] Bf8 [%clk 0:16:54] Nf4 [%clk 0:25:57] Ne5 [%clk 0:16:30] g5 [%clk 0:23:16] Rb8 [%clk 0:13:12]} 15. Rf2 {[%emt 0:00:00] Qb1 [%clk 0:12:10] Qd1 [%clk 0:20:17] Rb3 [%clk 0:11:07] Bf1 [%clk 0:18:32] Rc3 [%clk 0:10:30] Rb2 [%clk 0:13:42] Qxc1 [%clk 0:10:52] Qxc1 [%clk 0:14:04] Rxc1 [%clk 0:10:52]} Nd5 {[%emt 0:03:29] Bc6 [%clk 0:10:52] Ne7+ [%clk 0:14:04] Bxe7 [%clk 0:10:52] fxe7 [%clk 0:14:04] f6 [%clk 0:10:52] Rb8+ [%clk 0:14:04] Kf7 [%clk 0:10:52] gxf6 [%clk 0:14:04] Be8 [%clk 0:10:52] Rd8 [%clk 0:14:04] Nd7 [%clk 0:10:52] Kf2 [%clk 0:14:04] Nxf6 [%clk 0:10:52] Rxd6 [%clk 0:14:04] Kxe7 [%clk 0:10:52] Rb6 [%clk 0:14:04] Ra1 [%clk 0:10:52]} 0-1

[Event "Elitserien Allsvenskan 2018-19"]
[Site "Sweden"]
[Date "2018.11.11"]
[Round "3"]
[White "Kassani, Sam"]
[Black "Kenneskog, Theodor"]
[Result "1-0"]
[ECO "A48"]
[WhiteElo "2213"]
[BlackElo "2270"]
[Annotator "NA RC"]
[PlyCount "106"]
[EventDate "2018.11.09"]
[EventType "team-tourn"]
[EventCountry "SWE"]
[SourceTitle "playchess.com"]
[Source "ChessBase"]
[SourceQuality "1"]
[TimeControl "40/5400+30:1800+30"]

1. d4 {[%emt 0:00:09]} Nf6 {[%emt 0:00:00]} 2. Bf4 {[%emt 0:00:58]} g6 {[%emt 0:00:18]} 3. Nf3 {[%emt 0:00:23]} Bg7 {[%emt 0:00:06]} 4. e3 {[%emt 0:00:05]} O-O {[%emt 0:00:14]} 5. Be2 {[%emt 0:00:16]} d6 {[%emt 0:00:07]} 6. h3 {[%emt 0:00:03]} c5 {[%emt 0:00:15]} 7. c3 {[%emt 0:00:10]} b6 {[%emt 0:00:20]} 8. O-O {[%emt 0:00:08]} Bb7 {[%emt 0:00:05]} 9. Nbd2 {[%emt 0:00:18]} Nbd7 {[%emt 0:00:07]} 10. a4 {[%emt 0:00:28]} a6 {[%emt 0:00:12]} 11. Bh2 {[%emt 0:00:54]} Qc7 {[%emt 0:00:09]} 12. Re1 {[%emt 0:00:17]} Ne4 {[%emt 0:00:19]} 13. Nxe4 {[%emt 0:02:07]} Bxe4 {[%emt 0:00:05]} 14. Nd2 {[%emt 0:00:37]} Bc6 {[%emt 0:00:26]} 15. Bf1 {[%emt 0:05:53]} e5 {[%emt 0:09:54]} 16. b4 {[%emt 0:14:21]} a5 {[%emt 0:17:24]} 17. dxc5 {[%emt 0:17:28]} axb4 {[%emt 0:18:09]} 18. cxb4 {[%emt 0:01:51]} dxc5 {[%emt 0:05:12]} 19. b5 {[%emt 0:01:11]} Bd5 {[%emt 0:00:12]} 20. e4 {[%emt 0:02:42]} Be6 {[%emt 0:00:27]} 21. Bc4 {[%emt 0:01:06]} Qd6 {[%emt 0:03:01]} 22. Qc2 {[%emt 0:03:32]} Rfd8 {[%emt 0:00:37]} 23. Bxe6 {[%emt 0:05:51]} Qxe6 {[%emt 0:00:05]} 24. Nc4 {[%emt 0:00:05]} Nf8 {[%emt 0:01:27]} 25. Ne3 {[%emt 0:07:40]} Rd4 {[%emt 0:00:33]} 26. Nd5 {[%emt 0:00:23]} Qd6 {[%emt 0:00:11]} 27. f4 {[%emt 0:02:21]} Nd7 {[%emt 0:06:45]} 28. Kh1 {[%emt 0:03:44]} exf4 {[%emt 0:02:11]} 29. Bxf4 {[%emt 0:05:13]} Be5 {[%emt 0:00:18]} 30. Be3 {[%emt 0:05:46]} Rxd5 {[%emt 0:00:15]} 31. exd5 {[%emt 0:00:03]} Bxa1 {[%emt 0:00:11]} 32. Rxa1 {[%emt 0:00:03]} Qxd5 {[%emt 0:04:53]} 33. Rd1 {[%emt 0:00:30]} Qe6 {[%emt 0:02:38]} 34. Bf4 {[%emt 0:02:02]} Ne5 {[%emt 0:18:03]} 35. Qc3 {[%emt 0:05:28]} f6 {[%emt 0:01:10]} 36. Re1 {[%emt 0:01:35]} Re8 {[%emt 0:02:29]} 37. a5 {[%emt 0:02:22]} Qd7 {[%emt 0:04:01]} 38. axb6 {[%emt 0:09:14]} Qxb5 {[%emt 0:00:08]} 39. Bxe5 {[%emt 0:01:34]} fxe5 {[%emt 0:00:02]} 40. Rc1 {[%emt 0:00:38]} Qxb6 {[%emt 0:04:16]} 41. Qxc5 {[%emt 0:30:05]} Qxc5 {[%emt 0:31:45]} 42. Rxc5 {[%emt 0:00:40]} Kf7 {[%emt 0:00:23]} 43. Kg1 {[%emt 0:00:36]} Kf6 {[%emt 0:00:08]} 44. Kf2 {[%emt 0:00:00]} Ra8 {[%emt 0:00:00]} 45. Rc7 {[%emt 0:00:00]} h5 {[%emt 0:00:00]} 46. Rc2 {[%emt 0:00:00]} Ra3 {[%emt 0:00:00]} 47. Rb2 {[%emt 0:00:00]} Kf5 {[%emt 0:00:00]} 48. Rc2 {[%emt 0:00:00]} Kf4 {[%emt 0:00:00]} 49. Rb2 {[%emt 0:02:25]} e4 {[%emt 0:00:00]} 50. Rc2 {[%emt 0:00:25]} h4 {[%emt 0:00:00]} 51. Rb2 {[%emt 0:00:17]} e3+ {[%emt 0:00:00]} 52. Ke2 {[%emt 0:00:14]} Kg3 {[%emt 0:00:00]} 53. Rb4 {[%emt 0:00:54]} Ra2+ {[%emt 0:06:59]} 1-0

[Event "Elitserien Allsvenskan 2018-19"]
[Site "Sweden"]
[Date "2018.11.11"]
[Round "3"]
[White "Janse, Love"]
[Black "Fendrich, David"]
[Result "1-0"]
[ECO "B26"]
[WhiteElo "2210"]
[BlackElo "2233"]
[Annotator "NA"]
[PlyCount "125"]
[EventDate "2018.11.09"]
[EventType "team-tourn"]
[EventCountry "SWE"]
[SourceTitle "playchess.com"]
[Source "ChessBase"]
[SourceQuality "1"]
[TimeControl "40/5400+30:1800+30"]

1. e4 {[%emt 0:04:24]} c5 {[%emt 0:00:00]} 2. Nc3 {[%emt 0:00:15]} e6 {[%emt 0:00:10]} 3. g3 {[%emt 0:00:35]} Nc6 {[%emt 0:01:55]} 4. Bg2 {[%emt 0:00:11]} g6 {[%emt 0:00:52]} 5. d3 {[%emt 0:00:30]} Bg7 {[%emt 0:00:25]} 6. Be3 {[%emt 0:00:17]} d6 {[%emt 0:03:59]} 7. Qd2 {[%emt 0:00:08]} Rb8 {[%emt 0:01:29]} 8. a4 {[%emt 0:05:10]} a6 {[%emt 0:01:48]} 9. Nh3 {[%emt 0:06:44]} b5 {[%emt 0:02:19]} 10. axb5 {[%emt 0:01:03]} axb5 {[%emt 0:00:08]} 11. O-O {[%emt 0:01:01]} b4 {[%emt 0:04:23]} 12. Na4 {[%emt 0:09:21]} Nd4 {[%emt 0:03:00]} 13. Bxd4 {[%emt 0:06:01]} Bxd4 {[%emt 0:10:48]} 14. c3 {[%emt 0:00:30]} Bg7 {[%emt 0:00:21]} 15. d4 {[%emt 0:05:48]} cxd4 {[%emt 0:05:52]} 16. cxd4 {[%emt 0:00:13]} Ne7 {[%emt 0:07:18]} 17. Rfc1 {[%emt 0:08:25]} O-O {[%emt 0:10:53]} 18. Rc4 {[%emt 0:03:09]} Qa5 {[%emt 0:01:53]} 19. Qc1 {[%emt 0:03:09]} Ba6 {[%emt 0:06:43]} 20. Rc2 {[%emt 0:09:04]} Qb5 {[%emt 0:04:33]} 21. Qd2 {[%emt 0:06:10]} Rfc8 {[%emt 0:03:52]} 22. Rxc8+ {[%emt 0:05:14]} Nxc8 {[%emt 0:06:00]} 23. Bf1 {[%emt 0:01:15]} Qa5 {[%emt 0:00:46]} 24. Bxa6 {[%emt 0:02:44]} Qxa6 {[%emt 0:00:04]} 25. Nf4 {[%emt 0:00:42]} Qc4 {[%emt 0:03:32]} 26. d5 {[%emt 0:06:36]} e5 {[%emt 0:02:47]} 27. Qd3 {[%emt 0:00:23]} Qc7 {[%emt 0:06:31]} 28. Ng2 {[%emt 0:02:02]} Bh6 {[%emt 0:00:58]} 29. Ne3 {[%emt 0:01:17]} Bxe3 {[%emt 0:00:23]} 30. Qxe3 {[%emt 0:00:12]} Qd7 {[%emt 0:08:47]} 31. b3 {[%emt 0:01:05]} Qb7 {[%emt 0:01:44]} 32. Rc1 {[%emt 0:00:18]} Na7 {[%emt 0:00:13]} 33. Rc4 {[%emt 0:02:00]} Rc8 {[%emt 0:00:13]} 34. Qc1 {[%emt 0:02:22]} Qa6 {[%emt 0:01:02]} 35. Kg2 {[%emt 0:01:32]} Rxc4 {[%emt 0:01:04]} 36. Qxc4 {[%emt 0:00:06]} Nb5 {[%emt 0:00:26]} 37. Qxb4 {[%emt 0:02:22]} Nd4 {[%emt 0:00:07]} 38. Qc4 {[%emt 0:01:24]} Qa5 {[%emt 0:00:35]} 39. Nc3 {[%emt 0:01:18]} Qa1 {[%emt 0:00:56]} 40. Nb5 {[%emt 0:01:57]} Qd1 {[%emt 0:00:24]} 41. Nxd4 {[%emt 0:03:40]} exd4 {[%emt 0:01:41]} 42. e5 {[%emt 0:01:04]} dxe5 {[%emt 0:03:07]} 43. d6 {[%emt 0:00:26]} Qg4 {[%emt 0:08:53]} 44. f3 {[%emt 0:03:11]} Qg5 {[%emt 0:09:28]} 45. d7 {[%emt 0:04:30]} Qd2+ {[%emt 0:00:50]} 46. Kf1 {[%emt 0:00:36]} Qd1+ {[%emt 0:00:17]} 47. Kf2 {[%emt 0:00:05]} Qd2+ {[%emt 0:00:16]} 48. Qe2 {[%emt 0:00:40]} Qa5 {[%emt 0:00:54]} 49. Qc2 {[%emt 0:01:17]} Kg7 {[%emt 0:01:17]} 50. b4 {[%emt 0:05:52]} Qd5 {[%emt 0:06:05]} 51. Qc7 {[%emt 0:04:55]} Qa2+ {[%emt 0:01:17]} 52. Kf1 {[%emt 0:01:46]} Qa6+ {[%emt 0:01:08]} 53. Kg1 {[%emt 0:05:15]} Qa1+ {[%emt 0:00:19]} 54. Kg2 {[%emt 0:01:26]} Qa2+ {[%emt 0:00:05]} 55. Kh3 {[%emt 0:00:37]} Qe6+ {[%emt 0:00:07]} 56. g4 {[%emt 0:00:43]} Qf6 {[%emt 0:01:28]} 57. Kg2 {[%emt 0:00:13]} e4 {[%emt 0:01:13]} 58. f4 {[%emt 0:00:53]} Qa6 {[%emt 0:00:44]} 59. Qe5+ {[%emt 0:00:12]} Kh6 {[%emt 0:00:20]} 60. g5+ {[%emt 0:00:52]} Kh5 {[%emt 0:00:06]} 61. Qxe4 {[%emt 0:00:37]} Qa2+ {[%emt 0:00:16]} 62. Kg3 {[%emt 0:00:26]} Qb3+ {[%emt 0:01:01]} 63. Qf3+ {[%emt 0:00:09]} 1-0

[Event "Elitserien Allsvenskan 2018-19"]
[Site "Sweden"]
[Date "2018.11.11"]
[Round "3"]
[White "Eriksson, Jorgen"]
[Black "Kabadayi, Can"]
[Result "1-0"]
[ECO "D12"]
[WhiteElo "2193"]
[BlackElo "2213"]
[Annotator "NA"]
[PlyCount "99"]
[EventDate "2018.11.09"]
[EventType "team-tourn"]
[EventCountry "SWE"]
[SourceTitle "playchess.com"]
[Source "ChessBase"]
[SourceQuality "1"]
[TimeControl "40/5400+30:1800+30"]

1. d4 {[%emt 0:00:00]} d5 {[%emt 0:00:00]} 2. Nf3 {[%emt 0:00:07]} Nf6 {[%emt 0:00:00]} 3. c4 {[%emt 0:00:13]} c6 {[%emt 0:00:12]} 4. e3 {[%emt 0:04:19]} Bf5 {[%emt 0:01:51]} 5. Bd3 {[%emt 0:01:43]} Bxd3 {[%emt 0:01:15]} 6. Qxd3 {[%emt 0:00:07]} e6 {[%emt 0:00:32]} 7. Nc3 {[%emt 0:00:25]} Bb4 {[%emt 0:02:43]} 8. O-O {[%emt 0:00:20]} Nbd7 {[%emt 0:01:09]} 9. Rd1 {[%emt 0:01:58]} O-O {[%emt 0:01:44]} 10. Bd2 {[%emt 0:03:38]} Qe7 {[%emt 0:03:50]} 11. Rac1 {[%emt 0:05:49]} Rfd8 {[%emt 0:13:01]} 12. a3 {[%emt 0:02:56]} Bd6 {[%emt 0:03:45]} 13. e4 {[%emt 0:06:24]} dxc4 {[%emt 0:03:56]} 14. Qxc4 {[%emt 0:00:25]} e5 {[%emt 0:00:12]} 15. Bg5 {[%emt 0:04:31]} h6 {[%emt 0:04:09]} 16. Bh4 {[%emt 0:04:16]} Re8 {[%emt 0:13:48]} 17. Bxf6 {[%emt 0:17:06]} Nxf6 {[%emt 0:05:01]} 18. d5 {[%emt 0:00:57]} Rac8 {[%emt 0:03:10]} 19. dxc6 {[%emt 0:16:52]} Rxc6 {[%emt 0:03:14]} 20. Nd5 {[%emt 0:00:29]} Nxd5 {[%emt 0:03:16]} 21. Qxd5 {[%emt 0:00:52]} Rec8 {[%emt 0:01:58]} 22. Rxc6 {[%emt 0:01:24]} Rxc6 {[%emt 0:00:02]} 23. h3 {[%emt 0:04:20]} Bc7 {[%emt 0:03:35]} 24. Rd2 {[%emt 0:07:19]} Qf6 {[%emt 0:05:46]} 25. Qd3 {[%emt 0:07:25]} Bb6 {[%emt 0:02:04]} 26. g3 {[%emt 0:04:47]} Qe6 {[%emt 0:06:44]} 27. Kg2 {[%emt 0:01:03]} f6 {[%emt 0:01:57]} 28. Qd5 {[%emt 0:01:46]} Qxd5 {[%emt 0:04:29]} 29. exd5 {[%emt 0:00:35]} Rd6 {[%emt 0:00:21]} 30. Nh4 {[%emt 0:00:55]} Kf7 {[%emt 0:00:53]} 31. Nf5 {[%emt 0:00:44]} Rd7 {[%emt 0:00:13]} 32. Kf3 {[%emt 0:01:17]} h5 {[%emt 0:02:28]} 33. g4 {[%emt 0:00:40]} hxg4+ {[%emt 0:02:00]} 34. hxg4 {[%emt 0:00:01]} g6 {[%emt 0:00:40]} 35. Ne3 {[%emt 0:00:15]} Bd4 {[%emt 0:03:10]} 36. Ke4 {[%emt 0:00:38]} b5 {[%emt 0:00:13]} 37. b3 {[%emt 0:01:12]} Ke7 {[%emt 0:00:18]} 38. Rc2 {[%emt 0:00:16]} Rd6 {[%emt 0:01:55]} 39. Rc7+ {[%emt 0:00:44]} Kf8 {[%emt 0:01:48]} 40. Rb7 {[%emt 0:00:31]} Ra6 {[%emt 0:01:41]} 41. Rxb5 {[%emt 0:02:26]} Rxa3 {[%emt 0:03:51]} 42. Rb8+ {[%emt 0:10:49]} Ke7 {[%emt 0:04:58]} 43. Rb7+ {[%emt 0:00:09]} Kd8 {[%emt 0:00:50]} 44. d6 {[%emt 0:12:41]} Ra5 {[%emt 0:09:40]} 45. b4 {[%emt 0:02:28]} Ra2 {[%emt 0:02:00]} 46. Kd5 {[%emt 0:01:05]} Bxe3 {[%emt 0:05:27]} 47. fxe3 {[%emt 0:00:16]} Kc8 {[%emt 0:02:04]} 48. Rc7+ {[%emt 0:01:14]} Kb8 {[%emt 0:00:43]} 49. Ke6 {[%emt 0:00:35]} Rd2 {[%emt 0:01:34]} 50. Rc5 {[%emt 0:00:40]} 1-0

[Event "Elitserien Allsvenskan 2018-19"]
[Site "Sweden"]
[Date "2018.11.11"]
[Round "3"]
[White "Bengtsson, Jonas"]
[Black "Carlsson, Andreas"]
[Result "1-0"]
[ECO "A90"]
[WhiteElo "2107"]
[BlackElo "2028"]
[Annotator "NA"]
[PlyCount "123"]
[EventDate "2018.11.09"]
[EventType "team-tourn"]
[EventCountry "SWE"]
[SourceTitle "playchess.com"]
[Source "ChessBase"]
[SourceQuality "1"]
[TimeControl "40/5400+30:1800+30"]

1. d4 {[%emt 0:00:00]} e6 {[%emt 0:00:00]} 2. c4 {[%emt 0:00:00]} f5 {[%emt 0:00:00]} 3. g3 {[%emt 0:00:00]} Nf6 {[%emt 0:00:04]} 4. Bg2 {[%emt 0:00:00]} d5 {[%emt 0:00:16]} 5. Nh3 {[%emt 0:00:36]} c6 {[%emt 0:00:27]} 6. Qc2 {[%emt 0:02:28]} Bd6 {[%emt 0:00:34]} 7. O-O {[%emt 0:00:15]} O-O {[%emt 0:00:14]} 8. Bf4 {[%emt 0:00:10]} b6 {[%emt 0:00:52]} 9. Nd2 {[%emt 0:02:42]} Bb7 {[%emt 0:04:22]} 10. Nf3 {[%emt 0:01:27]} Qe7 {[%emt 0:01:53]} 11. Bxd6 {[%emt 0:01:06]} Qxd6 {[%emt 0:00:08]} 12. Nf4 {[%emt 0:00:14]} Ne4 {[%emt 0:00:34]} 13. Ne5 {[%emt 0:02:40]} Nd7 {[%emt 0:05:27]} 14. Nfd3 {[%emt 0:11:11]} c5 {[%emt 0:05:05]} 15. Nxd7 {[%emt 0:07:39]} Qxd7 {[%emt 0:00:10]} 16. dxc5 {[%emt 0:00:12]} Rfc8 {[%emt 0:01:35]} 17. cxd5 {[%emt 0:01:02]} Bxd5 {[%emt 0:04:07]} 18. b4 {[%emt 0:01:01]} bxc5 {[%emt 0:00:23]} 19. bxc5 {[%emt 0:01:48]} Qc6 {[%emt 0:08:16]} 20. Rac1 {[%emt 0:01:42]} Rab8 {[%emt 0:01:31]} 21. Nf4 {[%emt 0:10:58]} Rb5 {[%emt 0:05:41]} 22. Nxd5 {[%emt 0:00:11]} exd5 {[%emt 0:00:51]} 23. Qd3 {[%emt 0:03:20]} Rxc5 {[%emt 0:00:28]} 24. Rxc5 {[%emt 0:00:49]} Qxc5 {[%emt 0:00:08]} 25. e3 {[%emt 0:00:14]} Qc4 {[%emt 0:01:48]} 26. Bxe4 {[%emt 0:05:20]} dxe4 {[%emt 0:02:34]} 27. Qd7 {[%emt 0:00:22]} Qc5 {[%emt 0:01:48]} 28. Rd1 {[%emt 0:00:15]} Rf8 {[%emt 0:16:07]} 29. Qe6+ {[%emt 0:03:21]} Kh8 {[%emt 0:00:09]} 30. Rd7 {[%emt 0:00:19]} h6 {[%emt 0:02:26]} 31. h4 {[%emt 0:02:19]} a5 {[%emt 0:04:12]} 32. Kg2 {[%emt 0:05:14]} a4 {[%emt 0:04:24]} 33. Qd5 {[%emt 0:09:25]} Qc3 {[%emt 0:03:48]} 34. h5 {[%emt 0:00:36]} Kh7 {[%emt 0:09:17]} 35. Ra7 {[%emt 0:05:04]} Qf6 {[%emt 0:00:51]} 36. Rxa4 {[%emt 0:04:08]} Rd8 {[%emt 0:00:59]} 37. Qc5 {[%emt 0:01:03]} Rf8 {[%emt 0:04:43]} 38. Rd4 {[%emt 0:01:41]} Rf7 {[%emt 0:00:27]} 39. a4 {[%emt 0:03:07]} Qg5 {[%emt 0:00:08]} 40. a5 {[%emt 0:00:19]} Qg4 {[%emt 0:00:36]} 41. a6 {[%emt 0:34:05]} Qf3+ {[%emt 0:30:34]} 42. Kg1 {[%emt 0:00:15]} f4 {[%emt 0:03:17]} 43. gxf4 {[%emt 0:05:12]} Qg4+ {[%emt 0:00:19]} 44. Kf1 {[%emt 0:00:08]} Rf5 {[%emt 0:01:04]} 45. Rd5 {[%emt 0:01:21]} Rf6 {[%emt 0:08:36]} 46. Rd6 {[%emt 0:06:17]} Rf5 {[%emt 0:00:00]} 47. Qd4 {[%emt 0:00:00]} Qh3+ {[%emt 0:00:00]} 48. Ke1 {[%emt 0:00:00]} Qh1+ {[%emt 0:00:00]} 49. Kd2 {[%emt 0:00:00]} Qg2 {[%emt 0:00:00]} 50. Kc3 {[%emt 0:00:00]} Rxh5 {[%emt 0:00:00]} 51. Kb4 {[%emt 0:00:00]} Rh1 {[%emt 0:00:00]} 52. a7 {[%emt 0:00:00]} Rb1+ {[%emt 0:00:00]} 53. Kc5 {[%emt 0:00:00]} Rc1+ {[%emt 0:00:00]} 54. Kb6 {[%emt 0:00:00]} Rb1+ {[%emt 0:00:00]} 55. Kc7 {[%emt 0:00:00]} Rc1+ {[%emt 0:00:00]} 56. Kb7 {[%emt 0:00:00]} Rb1+ {[%emt 0:00:00]} 57. Rb6 {[%emt 0:00:00]} Rxb6+ {[%emt 0:00:00]} 58. Qxb6 {[%emt 0:00:00]} h5 {[%emt 0:00:00]} 59. a8=Q {[%emt 0:00:00]} h4 {[%emt 0:00:00]} 60. Qd4 {[%emt 0:00:00]} h3 {[%emt 0:00:00]} 61. Kb8 {[%emt 0:00:00]} h2 {[%emt 0:00:00]} 62. Qaxe4+ {[%emt 0:00:00]} 1-0

[Event "Elitserien Allsvenskan 2018-19"]
[Site "Sweden"]
[Date "2019.02.02"]
[Round "5"]
[White "Jepson, Christian"]
[Black "Antonsen, Mikkel"]
[Result "1/2-1/2"]
[ECO "E06"]
[WhiteElo "2389"]
[BlackElo "2428"]
[Annotator "NA RC"]
[PlyCount "84"]
[EventDate "2018.11.09"]
[EventType "team-tourn"]
[EventCountry "SWE"]
[SourceTitle "playchess.com"]
[Source "ChessBase"]
[SourceQuality "1"]
[TimeControl "40/5400+30:1800+30"]

{[%evp 8,64,16,0,15,23,38,19,20,19,16,32767,20,8,28,17,23,0,18,32767,18,15,32767,21,9,12,32767,32767,32767,32767,0,32767,30,37,32,8,31,-13,-8,0,0,-18,-8,32767,0,-10,0,32767,-8,32767,-26,32767,0,-62,-54,32767,-20,-18,0]} 1. Nf3 {[%emt 0:00:00]} d5 {[%emt 0:00:55]} 2. d4 {[%emt 0:01:55]} Nf6 {[%emt 0:00:12]} 3. c4 {[%emt 0:00:17]} e6 {[%emt 0:00:19]} 4. g3 {[%emt 0:00:42]} Be7 {[%emt 0:02:03]} 5. Bg2 {[%emt 0:05:01]} O-O {[%emt 0:00:08]} 6. O-O {[%emt 0:00:12]} dxc4 {[%emt 0:00:09]} 7. Qc2 {[%emt 0:05:16]} a6 {[%emt 0:00:29]} 8. a4 {[%emt 0:00:19]} Bd7 {[%emt 0:00:11]} 9. Qxc4 {[%emt 0:00:13]} Bc6 {[%emt 0:00:09]} 10. Bg5 {[%emt 0:00:18]} Bd5 {[%emt 0:03:58]} 11. Qd3 {[%emt 0:03:43]} Be4 {[%emt 0:01:13]} 12. Qe3 {[%emt 0:01:43]} Nbd7 {[%emt 0:09:31]} 13. Nc3 {[%emt 0:01:22]} Bc6 {[%emt 0:00:33]} 14. Qd3 {[%emt 0:04:01]} h6 {[%emt 0:09:44]} 15. Bf4 {[%emt 0:03:25]} (15. Bxf6 $5 Nxf6 16. Rfc1 $11) 15... Bb4 {[%emt 0:04:02]} 16. Rfd1 {[%emt 0:10:00]} Rc8 {[%emt 0:01:30]} 17. Ne5 {[%emt 0:05:56]} Bxg2 {[%emt 0:01:14]} 18. Kxg2 {[%emt 0:00:33]} Nxe5 {[%emt 0:05:30]} 19. Bxe5 {[%emt 0:10:38]} Qe7 {[%emt 0:07:42]} 20. Qf3 {[%emt 0:03:40]} c6 {[%emt 0:00:45]} 21. Na2 {[%emt 0:15:51]} (21. Bxf6 $5 Qxf6 22. Qxf6 gxf6 23. Ne4 $11) 21... Bd6 {[%emt 0:06:14]} 22. Nc1 {[%emt 0:12:04]} (22. Bxf6 $5 Qxf6 23. Qxf6 gxf6 24. Nc1 $11) 22... Bxe5 {[%emt 0:02:07]} 23. dxe5 {[%emt 0:02:15]} Nd5 {[%emt 0:00:09]} 24. Nd3 {[%emt 0:02:41]} Rfd8 {[%emt 0:02:18]} 25. Rac1 {[%emt 0:00:52]} Qc7 {[%emt 0:06:23]} 26. Qe4 {[%emt 0:01:26]} Qb6 {[%emt 0:00:15]} 27. Qc4 {[%emt 0:03:50]} c5 {[%emt 0:05:43]} 28. Kg1 {[%emt 0:00:06]} Ne7 {[%emt 0:00:30]} 29. e3 {[%emt 0:03:06]} Ng6 {[%emt 0:08:04]} 30. Qc3 {[%emt 0:01:56]} Qc6 {[%emt 0:00:46]} 31. a5 {[%emt 0:01:36]} Qf3 {[%emt 0:06:23]} 32. Rd2 {[%emt 0:00:12]} Qg4 $11 {[%emt 0:01:06]} 33. f4 {[%emt 0:00:39]} Nh4 {[%emt 0:03:03]} 34. Ne1 {[%emt 0:00:18]} Nf5 {[%emt 0:00:59]} 35. Rcc2 {[%emt 0:00:47]} h5 {[%emt 0:00:44]} 36. Rxd8+ {[%emt 0:00:31]} Rxd8 {[%emt 0:00:04]} 37. Rd2 {[%emt 0:00:02]} Rxd2 {[%emt 0:00:49]} 38. Qxd2 {[%emt 0:00:03]} h4 {[%emt 0:00:04]} 39. Qd8+ {[%emt 0:01:28]} Kh7 {[%emt 0:00:08]} 40. e4 {[%emt 0:00:14]} Qe2 {[%emt 0:05:34]} 41. exf5 {[%emt 0:02:57]} Qxe1+ {[%emt 0:01:10]} 42. Kg2 {[%emt 0:00:08]} Qe2+ {[%emt 0:07:34]} 1/2-1/2

[Event "Elitserien Allsvenskan 2018-19"]
[Site "Sweden"]
[Date "2019.02.02"]
[Round "5"]
[White "Dragicevic, Drazen"]
[Black "Haubro, Martin"]
[Result "0-1"]
[ECO "C50"]
[WhiteElo "2339"]
[BlackElo "2344"]
[Annotator "NA RC"]
[PlyCount "79"]
[EventDate "2018.11.09"]
[EventType "team-tourn"]
[EventCountry "SWE"]
[SourceTitle "playchess.com"]
[Source "ChessBase"]
[SourceQuality "1"]
[TimeControl "40/5400+30:1800+30"]

{[%evp 9,51,12,22,12,6,-6,0,0,0,2,11,-12,0,0,32767,32767,32767,-12,-6,-13,-3,-8,-6,-14,-13,0,-7,-14,-18,-13,41,0,32767,32767,32767,13,32767,32767,32767,-9,-3,-11,-26,-28]} 1. e4 {[%emt 0:00:10]} e5 {[%emt 0:00:25]} 2. Nf3 {[%emt 0:00:20]} Nc6 {[%emt 0:00:05]} 3. Bc4 {[%emt 0:00:30]} Nf6 {[%emt 0:00:11]} 4. Nc3 {[%emt 0:01:38]} Bc5 {[%emt 0:08:02]} 5. d3 {[%emt 0:02:49]} a6 {[%emt 0:02:50] LiveBook: 76 Games} 6. a3 {[%emt 0:06:40]} d6 {[%emt 0:00:47]} 7. Be3 {[%emt 0:30:20]} Bxe3 {[%emt 0:06:32]} 8. fxe3 {[%emt 0:00:09]} O-O {[%emt 0:00:11]} 9. O-O {[%emt 0:01:53]} Ne7 {[%emt 0:02:48]} 10. Qe1 {[%emt 0:02:17]} c6 {[%emt 0:09:07]} 11. Bb3 {[%emt 0:06:19]} Qb6 {[%emt 0:05:35]} 12. Kh1 {[%emt 0:05:02]} Ng6 {[%emt 0:19:59]} 13. Ng5 {[%emt 0:01:14]} Qc7 {[%emt 0:05:24]} 14. Qg3 {[%emt 0:04:41]} h6 {[%emt 0:08:15]} 15. Nf3 {[%emt 0:16:15]} Kh7 {[%emt 0:03:39]} 16. Nh4 {[%emt 0:01:41]} Nxh4 {[%emt 0:01:09]} 17. Qxh4 {[%emt 0:00:03]} Qe7 {[%emt 0:01:22]} 18. Rf3 {[%emt 0:01:16]} Be6 {[%emt 0:02:47]} 19. Raf1 {[%emt 0:01:57]} Rg8 {[%emt 0:07:38]} 20. Ne2 {[%emt 0:01:49]} Bxb3 {[%emt 0:02:49]} 21. cxb3 {[%emt 0:00:08]} Qd7 {[%emt 0:00:04] [#]} 22. Rh3 {[%emt 0:04:10]} ({White should try} 22. Ng3 $1 $16 {[%cal Rg3f5]} Qg4 23. Qxg4 Nxg4 24. Kg1) 22... Qe6 {[%emt 0:04:19]} 23. Ng3 {[%emt 0:01:23]} Qg4 {[%emt 0:01:40]} 24. Nf5 {[%emt 0:01:49]} (24. Qxg4 $14 Nxg4 25. Nf5) 24... Qxh4 {[%emt 0:00:06]} 25. Rxh4 {[%emt 0:00:03]} Ne8 $1 {[%emt 0:00:28]} 26. g4 $11 {[%emt 0:03:11]} f6 {[%emt 0:02:34]} 27. Ne7 {[%emt 0:02:28]} Rh8 {[%emt 0:01:56]} 28. Nf5 {[%emt 0:00:08]} Rd8 {[%emt 0:00:51]} 29. Kg2 {[%emt 0:01:53]} Nc7 {[%emt 0:00:40]} 30. b4 {[%emt 0:01:27]} d5 {[%emt 0:00:56]} 31. exd5 {[%emt 0:01:00]} Rxd5 {[%emt 0:00:08]} 32. d4 {[%emt 0:00:19]} exd4 {[%emt 0:00:29]} 33. Nxd4 {[%emt 0:00:43]} Re8 {[%emt 0:00:39]} 34. Rh3 {[%emt 0:00:35]} Kg6 {[%emt 0:01:13]} 35. Rhf3 {[%emt 0:00:24]} Ne6 {[%emt 0:00:41]} 36. Nf5 {[%emt 0:00:27]} Ng5 {[%emt 0:00:28]} 37. Rf4 {[%emt 0:00:43]} Ne4 {[%emt 0:00:56]} 38. Nd4 {[%emt 0:00:30]} Nd2 {[%emt 0:00:34]} 39. Re1 {[%emt 0:00:32]} Nc4 {[%emt 0:00:31]} 40. Kf3 {[%emt 0:00:00]} 0-1